bitfinex-derivatives/quotes_ETHF0:USTF0_20250224
["timestamp","ask_amount","ask_price","bid_price","bid_amount"]
[1740381145822,2.46554022,2732.5,2732.4,1.6531]
[1740381146823,2.46554022,2732.5,2732.4,0.5342]
[1740381147020,3.04764022,2732.5,2732.4,0.5342]
[1740381147918,2.46554022,2732.5,2732.4,0.5342]
[1740381148117,2.406,2732.5,2732.4,0.5342]
[1740381153621,2.987,2732.9,2732.4,0.5342]
[1740381153827,2.46553027,2732.8,2732.4,0.5342]
[1740381154123,2.406,2732.8,2732.4,0.5342]
[1740381155219,2.987,2732.9,2732.4,0.5342]
[1740381155519,2.46553091,2732.8,2732.4,0.5342]
[1740381155720,2.406,2732.8,2732.4,0.5342]
[1740381156119,2.406,2732.7,2732.6,3.2078]
[1740381156419,2.406,2732.7,2732.4,0.5342]
[1740381160833,3.2078,2733.1,2732.4,0.5342]
[1740381161130,0.5369,2733.2,2732.6,3.2078]
[1740381161429,2.406,2733.1,2732.7,1.1112]
[1740381161929,2.406,2733.1,2732.8,0.5272]
[1740381163824,0.57,2733.0,2732.8,0.5272]
[1740381164232,0.57,2733.0,2732.7,1.1112]
[1740381164432,0.57,2733.0,2732.6,3.2078]
[1740381165331,5.6138,2733.1,2732.6,3.2078]
[1740381165529,0.73098215,2733.0,2732.7,0.5474]
[1740381165726,0.73098215,2733.0,2732.8,1.0634]
[1740381165923,3.13698215,2733.0,2732.8,1.0634]
[1740381167729,3.13698215,2733.0,2732.7,0.5474]
[1740381172834,0.05953034,2732.9,2732.6,3.2078]
[1740381173027,3.13698215,2733.0,2732.6,3.2078]
[1740381173235,0.5425,2732.8,2732.6,3.2078]
[1740381176436,2.405,2732.7,2732.6,3.2078]
[1740381177934,0.5425,2732.8,2732.6,3.2078]
[1740381178131,2.405,2732.7,2732.6,3.2078]
[1740381178636,2.9715,2732.7,2732.6,3.2078]
[1740381181634,2.9715,2732.7,2732.5,0.5644]
[1740381181834,2.9715,2732.7,2732.5,3.7722]
[1740381192141,2.9715,2732.7,2732.5,3.2078]
[1740381192443,0.05953505,2732.6,2732.2,0.00548416]
[1740381192642,0.60923505,2732.6,2732.2,0.00548416]
[1740381192847,0.05953505,2732.5,2732.2,0.00548416]
[1740381193048,0.05954181,2732.4,2732.2,0.00548416]
[1740381193249,2.405,2732.3,2732.2,0.00548416]
[1740381194951,2.46454522,2732.3,2732.2,0.00548416]
[1740381195648,2.405,2732.3,2732.2,0.00548416]
[1740381196149,2.46454485,2732.3,2732.2,0.00548416]
[1740381196448,3.195527,2732.3,2732.2,0.00548416]
[1740381198149,0.73098215,2732.3,2732.2,0.00548416]
[1740381198448,2.405,2732.3,2732.2,0.00548416]
[1740381202158,2.46454584,2732.3,2732.2,0.00548416]
[1740381202851,3.19552799,2732.3,2732.2,0.00548416]
[1740381207061,3.19552799,2732.3,2731.7,0.5523]
[1740381207260,0.63574584,2732.2,2731.7,0.5523]
[1740381207464,3.8314508,2732.1,2731.7,0.5523]
[1740381207763,3.7719,2732.1,2731.7,0.5523]
[1740381207964,0.5743,2732.0,2731.7,0.5523]
[1740381208165,2.405,2731.9,2731.7,0.5523]
[1740381210558,2.405,2731.9,2731.6,1.10558416]
[1740381211063,3.26735449,2731.8,2731.6,0.00548416]
[1740381211262,0.62815802,2731.7,2731.6,0.00548416]
[1740381211461,0.62815786,2731.7,2731.6,0.00548416]
[1740381211666,0.5686,2731.7,2731.6,0.00548416]
[1740381212561,0.62815918,2731.7,2731.6,0.00548416]
[1740381213064,0.62815983,2731.7,2731.6,0.00548416]
[1740381214756,0.62816287,2731.7,2731.6,0.00548416]
[1740381215160,0.62816279,2731.7,2731.6,0.00548416]
[1740381215361,0.6281598,2731.7,2731.6,0.00548416]
[1740381218371,0.62816148,2731.7,2731.6,0.00548416]
[1740381219471,0.62816148,2731.7,2731.6,0.00922323]
[1740381219866,3.83596148,2731.7,2731.6,0.00922323]
[1740381220062,3.83596183,2731.7,2731.6,0.00922323]
[1740381221879,3.83596315,2731.7,2731.6,0.00922323]
[1740381223773,3.8359636,2731.7,2731.6,0.00922323]
[1740381225681,3.83596439,2731.7,2731.6,0.00922323]
[1740381226069,3.83596439,2731.7,2730.9,1.697]
[1740381226269,3.2078,2731.3,2730.9,1.697]
[1740381226469,2.405,2731.2,2730.9,1.697]
[1740381226975,3.13598215,2731.2,2730.9,1.697]
[1740381227978,3.2078,2731.0,2730.9,1.697]
[1740381228673,3.93878215,2731.0,2730.9,1.697]
[1740381231880,0.73098215,2731.0,2730.9,1.697]
[1740381232379,3.13598215,2731.2,2730.9,1.697]
[1740381233878,3.13598215,2731.2,2730.9,4.9048]
[1740381234182,2.405,2731.2,2730.9,4.9048]
[1740381234376,2.405,2731.2,2730.9,45.7048]
[1740381234879,2.405,2731.2,2730.9,4.9048]
[1740381235472,2.405,2731.2,2730.9,1.697]
[1740381236182,0.5293,2731.1,2730.9,1.697]
[1740381236384,1.0968,2731.1,2730.9,0.5777]
[1740381236577,1.0968,2731.1,2730.8,0.00364778]
[1740381236782,0.05957647,2731.0,2730.8,0.00364778]
[1740381238182,3.2078,2730.9,2730.8,0.00364778]
[1740381238882,3.26738019,2730.9,2730.8,0.00364778]
[1740381239071,3.83148019,2730.9,2730.8,0.00364778]
[1740381241181,3.83148193,2730.9,2730.8,0.00364778]
[1740381241877,3.26738193,2730.9,2730.8,0.00364778]
[1740381242278,0.05958193,2730.9,2730.8,0.00364778]
[1740381242775,0.05957653,2730.9,2730.8,0.00364778]
[1740381243590,0.05957653,2731.0,2730.8,0.00364778]
[1740381243782,2.405,2730.9,2730.8,0.00364778]
[1740381245393,0.73098215,2731.1,2730.8,0.00364778]
[1740381245593,0.73098215,2731.1,2730.9,3.2078]
[1740381245889,2.405,2731.1,2731.0,1.6728]
[1740381249196,2.46457376,2731.1,2730.8,0.00364778]
[1740381249391,2.9593,2731.1,2730.8,0.00364778]
[1740381249992,3.69028215,2731.1,2730.8,0.00364778]
[1740381252892,3.13598215,2731.1,2730.8,0.00364778]
[1740381253092,0.73098215,2731.1,2730.8,0.00364778]
[1740381253292,2.405,2731.0,2730.8,3.21144778]
[1740381262701,2.405,2731.0,2730.8,0.00364778]
[1740381266203,0.73209919,2731.3,2730.8,0.00364778]
[1740381266506,0.73209919,2731.3,2731.1,3.2078]
[1740381266699,0.73209919,2731.3,2731.2,1.6755]
[1740381267014,2.404,2731.4,2731.2,1.6755]
[1740381269411,0.5327,2731.3,2731.2,1.6755]
[1740381270713,0.5327,2731.3,2730.8,3.21144778]
[1740381271203,0.5714,2731.2,2730.8,3.21144778]
[1740381271602,0.05957342,2731.1,2730.8,3.21144778]
[1740381271807,2.404,2731.0,2730.8,3.21144778]
[1740381272008,2.9581,2731.0,2730.8,3.21144778]
[1740381272319,0.5258,2730.9,2730.8,3.21144778]
[1740381273311,0.5258,2730.9,2730.8,0.00364778]
[1740381273929,0.58537801,2730.9,2730.8,0.00364778]
[1740381278620,0.58538287,2730.9,2730.8,0.00364778]
[1740381280721,0.58538287,2730.9,2730.2,4.3039]
[1740381280909,3.2078,2730.6,2730.2,3.7696]
[1740381281215,4.0945,2730.5,2730.2,3.7696]
[1740381283321,2.404,2730.5,2730.2,3.7696]
[1740381283517,2.404,2730.5,2730.3,0.5658]
[1740381284715,0.00548416,2730.6,2730.3,0.5658]
[1740381284923,0.00548416,2730.6,2730.5,3.2078]
[1740381285119,0.00548416,2730.6,2730.3,0.5658]
[1740381285618,0.00548416,2730.6,2730.4,3.2078]
[1740381287822,0.00548416,2730.6,2730.3,0.5658]
[1740381288020,0.00548416,2730.6,2730.3,3.7736]
[1740381292825,4.16e-06,2730.6,2730.3,3.7736]
[1740381293124,4.16e-06,2730.6,2730.3,9.7736]
[1740381293724,4.16e-06,2730.6,2730.3,3.7736]
[1740381294123,4.16e-06,2730.6,2730.3,9.7736]
[1740381295821,4.16e-06,2730.6,2730.3,3.7736]
[1740381300329,4.16e-06,2730.6,2730.3,0.5658]
[1740381300530,4.16e-06,2730.6,2730.2,0.56728]
[1740381300931,3.2078,2730.5,2730.2,0.56728]
[1740381301227,4.0799,2730.4,2730.2,0.00548]
[1740381301932,2.403,2730.3,2730.2,0.00548]
[1740381302629,2.9462,2730.3,2730.2,0.00548]
[1740381308631,2.9462,2730.3,2730.0,1.0]
[1740381309031,3.2078,2730.2,2730.0,1.0]
[1740381310035,6.1948,2730.2,2730.0,1.0]
[1740381316442,3.2078,2730.2,2729.4,1.6307]
[1740381316742,3.2078,2729.6,2729.4,1.6307]
[1740381316948,3.5283,2729.5,2729.4,1.6307]
[1740381318750,3.5283,2729.5,2729.4,0.553]
[1740381321245,3.5283,2729.5,2729.2,0.1]
[1740381321551,3.2078,2729.3,2728.5,1.6781]
[1740381321943,0.0054943,2729.2,2728.5,1.6781]
[1740381322150,2.404,2729.1,2728.5,1.6781]
[1740381322446,0.563,2729.0,2728.5,1.6781]
[1740381322748,1.1018,2729.0,2728.5,1.6781]
[1740381324248,4.3096,2729.0,2728.5,1.6781]
[1740381324447,0.5766,2728.9,2728.5,1.6781]
[1740381324748,0.5766,2728.9,2728.5,0.5487]
[1740381324950,3.2078,2728.7,2728.0,41.8748]
[1740381325149,2.404,2728.6,2728.1,0.5298]
[1740381325350,2.969,2728.6,2728.1,0.5298]
[1740381325747,2.969,2728.6,2728.2,0.73297]
[1740381326252,2.969,2728.6,2728.3,0.73295]
[1740381326449,2.969,2728.6,2728.1,0.5298]
[1740381326751,2.404,2728.5,2728.2,3.2078]
[1740381326948,2.404,2728.5,2728.4,0.73294]
[1740381327150,2.404,2728.5,2728.3,0.73295]
[1740381327454,2.404,2728.5,2728.4,0.73294]
[1740381327956,2.404,2728.5,2728.1,0.5298]
[1740381328150,2.404,2728.5,2728.2,0.73297]
[1740381328348,2.404,2728.5,2728.3,0.73295]
[1740381328652,2.404,2728.5,2728.1,0.5298]
[1740381328852,0.584,2728.4,2728.1,0.5298]
[1740381329154,3.2078,2728.2,2727.8,0.73309]
[1740381329347,2.9516,2728.1,2727.7,0.537]
[1740381329548,2.9516,2728.1,2727.7,1.27011]
[1740381329849,2.9516,2728.1,2727.8,0.7331]
[1740381330153,2.9516,2728.1,2727.7,0.537]
[1740381330154,3.2078,2727.9,2727.7,0.537]
[1740381330451,0.5443,2727.8,2727.7,0.537]
[1740381331054,0.5443,2727.8,2727.5,0.73317]
[1740381331258,2.404,2727.7,2727.3,0.5779]
[1740381331755,2.404,2727.7,2727.5,0.73315]
[1740381332254,2.404,2727.7,2727.3,0.5779]
[1740381332649,2.404,2727.7,2727.6,0.73315]
[1740381333551,2.404,2727.7,2727.5,0.73317]
[1740381334160,2.404,2727.7,2727.6,0.73315]
[1740381334558,2.404,2727.7,2727.5,0.73316]
[1740381334858,3.2078,2727.6,2727.0,0.5305]
[1740381335050,3.7572,2727.6,2727.0,0.5305]
[1740381335250,3.7572,2727.6,2727.3,0.73321]
[1740381335457,6.7442,2727.6,2727.0,0.5305]
[1740381335657,3.7572,2727.6,2727.3,0.73322]
[1740381335854,3.7572,2727.6,2727.0,0.5305]
[1740381336053,3.7572,2727.6,2727.0,2.36378]
[1740381336250,0.0596636,2727.5,2727.1,1.83322]
[1740381336454,0.0596636,2727.5,2727.4,0.73321]
[1740381336758,0.05966292,2727.5,2727.4,0.73321]
[1740381337156,0.05966292,2727.5,2727.0,0.5305]
[1740381337470,0.05966237,2727.4,2727.0,0.5305]
[1740381337760,2.405,2727.3,2727.0,0.5305]
[1740381337955,5.6128,2727.3,2727.0,0.5305]
[1740381338556,2.405,2727.2,2727.0,0.5305]
[1740381338754,3.2078,2727.6,2727.1,0.5309]
[1740381338958,2.405,2727.6,2727.3,3.2078]
[1740381339160,2.405,2727.6,2727.1,0.5309]
[1740381340154,5.6128,2727.6,2727.1,0.5309]
[1740381340354,0.88008125,2727.5,2727.1,0.5309]
[1740381341060,1.43388125,2727.5,2727.1,0.5309]
[1740381341855,3.2078,2727.3,2727.1,0.5309]
[1740381342063,2.405,2727.2,2727.1,0.5309]
[1740381342365,3.28508125,2727.2,2727.1,0.5309]
[1740381344062,3.28508125,2727.2,2726.9,0.5611]
[1740381348860,0.5699,2727.1,2726.9,0.5611]
[1740381349965,2.405,2727.2,2726.9,0.5611]
[1740381350268,3.28373041,2727.2,2726.9,0.5611]
[1740381350563,2.405,2727.2,2726.9,0.5611]
[1740381351556,3.2078,2727.3,2726.9,0.5611]
[1740381351761,3.28373041,2727.2,2726.9,0.5611]
[1740381352368,3.84543041,2727.2,2726.9,0.5611]
[1740381352662,3.28373041,2727.2,2726.9,0.5611]
[1740381355267,0.87873041,2727.2,2726.9,0.5611]
[1740381355469,2.405,2727.4,2727.0,40.8]
[1740381356466,2.405,2727.4,2726.9,0.5611]
[1740381360059,1.6741,2727.8,2727.1,3.2078]
[1740381360260,0.0054943,2727.9,2727.4,3.2078]
[1740381360571,0.0054943,2727.9,2727.5,0.5661]
[1740381362670,4.3e-06,2727.9,2727.7,3.2078]
[1740381362966,2.405,2728.4,2727.8,1.0961]
[1740381363369,0.5798,2728.3,2727.9,0.5516]
[1740381364174,0.5798,2728.3,2728.0,1.83262]
[1740381364564,0.5798,2728.3,2728.2,0.73299]
[1740381365869,2.9852943,2728.4,2728.0,1.83262]
[1740381365870,1.43784657,2728.4,2728.3,0.73296]
[1740381366077,3.2078,2729.1,2728.8,0.73283]
[1740381366267,2.9649,2729.2,2729.1,0.73275]
[1740381366467,6.23231826,2729.2,2729.1,0.73275]
[1740381367077,2.405,2729.2,2729.1,0.73275]
[1740381367267,0.0054943,2729.4,2729.3,0.7327]
[1740381368474,2.405,2729.8,2729.7,0.73259]
[1740381368671,3.2078,2729.9,2729.8,0.73256]
[1740381369366,3.757,2729.9,2729.8,0.73256]
[1740381370775,3.2078,2729.9,2729.8,0.73256]
[1740381378179,3.2078,2729.9,2729.4,0.5471]
[1740381380288,3.2078,2729.6,2729.1,0.5338]
[1740381380487,3.7401,2729.5,2729.0,0.5304]
[1740381380685,3.2078,2729.2,2728.5,1.1313]
[1740381380884,3.2078,2729.2,2728.4,3.2078]
[1740381381086,0.0596218,2729.1,2728.4,3.2078]
[1740381381286,2.403,2729.0,2728.7,0.73284]
[1740381381577,2.4626218,2729.0,2728.1,0.5304]
[1740381381777,2.4626218,2729.0,2727.8,0.5613]
[1740381381778,3.2078,2728.5,2727.8,0.5613]
[1740381381989,2.935,2728.4,2728.1,0.733]
[1740381382288,3.2078,2728.3,2727.8,1.83275]
[1740381382682,3.2132943,2728.3,2728.2,0.73299]
[1740381383190,3.2132943,2728.3,2728.1,0.733]
[1740381383690,3.2132943,2728.3,2728.2,0.73299]
[1740381383892,3.2132943,2728.3,2727.8,0.0054943]
[1740381384093,3.2078,2728.0,2727.8,0.0054943]
[1740381384392,2.403,2727.9,2727.8,0.7385743]
[1740381389593,3.2078,2728.0,2727.9,0.73307]
[1740381389893,5.6108,2728.0,2727.9,0.73307]
[1740381390981,5.6108,2728.0,2727.8,0.0054943]
[1740381391189,5.6108,2728.0,2726.9,3.7878]
[1740381391392,3.2078,2727.4,2726.9,0.58]
[1740381391696,3.2078,2727.1,2727.0,0.73329]
[1740381391887,5.6118,2727.1,2727.0,0.73329]
[1740381394088,2.404,2727.1,2727.0,0.73329]
[1740381394292,0.5689,2727.3,2727.2,0.73326]
[1740381394494,2.9729,2727.3,2727.2,0.73326]
[1740381394795,0.5689,2727.3,2727.2,0.73326]
[1740381394996,2.9729,2727.3,2727.2,0.73326]
[1740381395791,2.9729,2727.3,2727.1,0.73327]
[1740381396098,2.9729,2727.3,2727.2,0.73326]
[1740381397099,2.9729,2727.3,2726.8,0.0054943]
[1740381397492,0.5689,2727.3,2726.8,0.0054943]
[1740381397694,2.404,2727.2,2726.8,0.0054943]
[1740381399296,0.5689,2727.3,2726.8,0.0054943]
[1740381399592,2.404,2727.1,2726.8,0.0054943]
[1740381400194,5.6118,2727.1,2726.8,0.0054943]
[1740381401002,0.05956728,2727.0,2726.8,0.0054943]
[1740381402195,0.05956159,2726.9,2726.0,1.1036]
[1740381402400,3.2078,2726.4,2725.9,3.2078]
[1740381402702,2.952,2726.3,2725.9,3.2078]
[1740381402902,0.548,2726.3,2725.9,3.2078]
[1740381403098,0.548,2726.3,2726.0,1.83396]
[1740381403295,2.404,2726.2,2726.1,0.73356]
[1740381403803,3.2132943,2726.4,2726.1,0.73356]
[1740381404003,2.4094943,2726.4,2726.3,0.7335]
[1740381404209,2.4094943,2726.4,2726.3,41.5335]
[1740381405196,5.6172943,2726.4,2726.3,0.7335]
[1740381409106,5.6172943,2726.4,2726.0,0.5577]
[1740381409311,0.5752,2726.3,2726.0,0.5577]
[1740381409606,2.49287844,2726.3,2726.0,0.5577]
[1740381411310,3.23807844,2726.3,2726.0,0.5577]
[1740381412798,0.5621,2726.2,2726.0,0.5577]
[1740381413805,1.39517844,2726.2,2726.0,0.5577]
[1740381414308,0.83307844,2726.2,2726.0,0.5577]
[1740381414503,3.23807844,2726.2,2726.0,0.5577]
[1740381414905,2.405,2726.2,2726.0,0.5577]
[1740381418809,0.83307844,2726.3,2726.0,0.5577]
[1740381419111,0.83307844,2726.3,2726.0,3.7655]
[1740381419319,0.83307844,2726.3,2726.1,0.5451]
[1740381419517,8.44e-06,2726.3,2726.2,0.5712]
[1740381419723,0.0054943,2726.4,2726.2,0.5712]
[1740381421119,0.0054943,2726.4,2726.0,0.5577]
[1740381424232,0.0054943,2726.4,2725.8,0.5712]
[1740381424430,0.0054943,2726.4,2725.9,0.5588]
[1740381429530,0.82695304,2726.4,2725.9,0.5588]
[1740381430429,3.2078,2726.2,2725.8,0.5712]
[1740381430725,2.405,2726.1,2725.8,0.5712]
[1740381431327,3.22645874,2726.1,2725.9,0.5488]
[1740381432033,3.22645874,2726.1,2725.4,3.2078]
[1740381432235,3.2078,2725.9,2725.5,1.0734]
[1740381433632,0.5445,2725.8,2725.5,1.0734]
[1740381434135,1.36595874,2725.8,2725.5,1.0734]
[1740381434533,2.405,2725.7,2725.5,1.0734]
[1740381435633,2.405,2725.7,2718.6,2.45437007]
[1740381435634,3.2078,2725.6,2724.9,3.2078]
[1740381435841,3.2078,2725.6,2725.0,0.5501]
[1740381436027,4.02925874,2725.6,2725.0,0.5501]
[1740381436335,3.2078,2725.2,2725.0,0.5501]
[1740381436534,3.743,2725.5,2725.0,0.5501]
[1740381438232,0.82145874,2725.6,2725.0,0.5501]
[1740381438735,0.06495874,2725.6,2725.0,3.7579]
[1740381438939,5.392,2726.0,2725.0,3.7579]
[1740381439331,2.405,2726.0,2725.0,3.7579]
[1740381439531,2.405,2726.0,2725.3,3.2078]
[1740381439734,2.405,2726.0,2725.4,1.1524]
[1740381440235,2.405,2726.0,2725.5,0.5732]
[1740381440639,3.2078,2725.8,2725.5,0.5732]
[1740381440834,3.2078,2725.8,2725.0,3.2078]
[1740381441036,3.2078,2725.5,2725.0,0.57]
[1740381441237,0.5696,2725.4,2725.1,0.5641]
[1740381443234,5.6128,2725.5,2725.1,0.5641]
[1740381443538,5.6128,2725.5,2725.1,1.1425]
[1740381444639,5.6128,2725.5,2725.1,0.5641]
[1740381445834,5.6128,2725.5,2724.7,3.7614]
[1740381446134,0.05957158,2725.4,2725.3,0.00586898]
[1740381446339,3.26737158,2725.4,2725.3,0.00586898]
[1740381447741,9.26737158,2725.4,2725.3,0.00586898]
[1740381447936,9.26737158,2725.4,2724.3,3.2078]
[1740381448138,3.2078,2724.9,2724.4,1.1004]
[1740381448342,2.9339,2724.8,2724.4,1.1004]
[1740381448736,3.73421466,2724.8,2724.4,1.1004]
[1740381452743,4.66e-06,2724.8,2724.6,3.2078]
[1740381452940,2.406,2725.4,2724.7,0.5515]
[1740381453141,2.406,2725.7,2725.0,3.2078]
[1740381453343,2.406,2725.7,2725.6,0.73369]
[1740381453742,3.7904,2726.0,2725.1,4.76724]
[1740381453743,3.7904,2726.0,2725.3,0.5515]
[1740381453943,3.7904,2726.0,2725.9,0.73361]
[1740381454351,0.00550459,2726.2,2725.7,2.93221]
[1740381454646,3.2078,2726.0,2725.5,0.7337]
[1740381454850,3.2078,2725.7,2725.4,0.00550459]
[1740381455040,2.406,2725.6,2725.4,0.00550459]
[1740381455343,2.957,2725.6,2725.4,0.00550459]
[1740381455547,2.957,2725.6,2725.4,0.73923459]
[1740381455740,2.957,2725.6,2725.4,0.00550459]
[1740381456346,2.957,2725.6,2724.9,3.7676]
[1740381456347,8.957,2725.6,2724.9,3.2078]
[1740381456652,8.957,2725.6,2724.4,3.67002]
[1740381456653,3.2078,2725.4,2725.3,0.73377]
[1740381456841,3.2078,2725.4,2724.7,3.2078]
[1740381457039,3.2078,2725.4,2725.0,0.73384]
[1740381457348,3.2078,2725.4,2725.1,0.73381]
[1740381457551,3.2078,2725.4,2724.7,3.2078]
[1740381457750,3.2078,2725.4,2725.3,0.73377]
[1740381457953,3.2078,2725.4,2725.1,0.73382]
[1740381458251,3.2078,2725.4,2725.0,0.73383]
[1740381458446,3.2078,2725.4,2724.7,3.2078]
[1740381458649,3.2078,2725.4,2725.2,0.73378]
[1740381459148,3.2078,2725.4,2724.9,0.572]
[1740381459350,3.2078,2725.4,2725.3,0.73377]
[1740381459649,3.26728663,2725.4,2725.2,0.73378]
[1740381459851,3.2078,2725.4,2725.2,0.73378]
[1740381462654,3.2078,2725.4,2725.1,0.7338]
[1740381462854,3.2078,2725.4,2724.9,0.572]
[1740381463052,3.2078,2725.4,2725.2,0.73377]
[1740381463455,3.2078,2725.4,2725.1,0.73381]
[1740381463651,0.05945172,2725.3,2725.1,0.73381]
[1740381463852,2.406,2725.2,2725.1,0.73381]
[1740381464157,3.71905419,2725.5,2725.0,3.2078]
[1740381464459,0.78265419,2725.6,2725.1,0.5278]
[1740381464658,4.19e-06,2725.6,2725.3,3.2078]
[1740381464855,4.19e-06,2725.6,2725.4,0.5702]
[1740381465060,0.00550459,2726.2,2725.5,40.8]
[1740381465350,0.00550459,2726.2,2726.1,0.73356]
[1740381469658,0.00550459,2726.2,2726.0,0.73356]
[1740381470063,0.00550459,2726.2,2726.1,0.73356]
[1740381470565,2.41050459,2726.2,2726.0,0.73356]
[1740381470762,2.41050459,2726.2,2726.1,0.73356]
[1740381471959,2.41050459,2726.2,2726.0,0.73357]
[1740381471960,5.61830459,2726.2,2726.0,0.73357]
[1740381472464,5.61830459,2726.2,2726.1,0.73356]
[1740381472662,5.61830459,2726.2,2725.7,0.73364]
[1740381472965,0.5381,2726.1,2725.6,0.5699]
[1740381473163,0.5381,2726.1,2725.7,0.73363]
[1740381473362,3.2078,2725.9,2725.6,0.5699]
[1740381473564,3.2078,2725.9,2725.8,0.73364]
[1740381474860,3.2078,2725.9,2725.6,0.5699]
[1740381475068,2.9725,2725.8,2725.2,5.04225]
[1740381475262,2.9725,2725.8,2725.2,4.3325]
[1740381475467,3.2078,2725.4,2725.2,1.1247]
[1740381475666,3.2078,2725.4,2725.2,0.5661]
[1740381476971,2.405,2725.5,2725.2,0.5661]
[1740381479376,3.2078,2725.4,2725.2,0.5661]
[1740381479874,3.97163363,2725.4,2725.2,0.5661]
[1740381482779,0.5336,2725.3,2725.2,0.5661]
[1740381484877,3.97163363,2725.4,2725.2,0.5661]
[1740381485471,3.2078,2725.3,2724.6,3.2078]
[1740381485673,3.7762,2725.3,2724.6,3.2078]
[1740381485880,3.7762,2725.3,2724.7,0.5644]
[1740381487074,4.54003363,2725.3,2724.7,0.5644]
[1740381490277,4.54003363,2725.3,2724.5,1.0714]
[1740381490578,3.2078,2725.0,2724.5,1.0714]
[1740381490779,5.6138,2725.0,2724.5,1.0714]
[1740381491274,0.76383363,2724.9,2724.5,1.0714]
[1740381492779,0.5614,2724.8,2724.5,1.0714]
[1740381495184,0.5614,2724.8,2724.5,0.5336]
[1740381495384,1.1271,2724.8,2724.3,3.2078]
[1740381495785,1.13260459,2724.8,2724.4,0.5794]
[1740381495982,3.2078,2724.7,2724.4,0.5794]
[1740381496377,2.406,2724.6,2724.4,0.5794]
[1740381496684,2.406,2724.6,2724.0,3.7425]
[1740381496884,3.16983363,2724.6,2724.1,0.5794]
[1740381498686,3.2078,2724.4,2724.1,0.5794]
[1740381498989,0.5524,2724.3,2724.1,0.5794]
[1740381499984,2.406,2724.2,2724.0,0.5347]
[1740381500892,2.406,2724.2,2723.8,0.5323]
[1740381501786,0.76383363,2724.3,2723.9,0.5398]
[1740381501982,3.63e-06,2724.3,2724.0,3.2078]
[1740381502187,3.63e-06,2724.3,2724.0,6.1618]
[1740381502590,3.63e-06,2724.3,2724.1,40.8]
[1740381502792,4.59e-06,2724.8,2724.1,40.8]
[1740381503091,4.59e-06,2724.8,2724.7,3.2078]
[1740381503294,4.59e-06,2724.8,2724.7,3.94173]
[1740381505591,4.59e-06,2724.8,2724.7,0.73393]
[1740381508088,2.41300459,2724.8,2724.7,0.73393]
[1740381511094,2.41300459,2724.8,2724.6,0.5321]
[1740381513598,4.59e-06,2724.8,2724.6,0.5321]
[1740381513793,4.59e-06,2724.8,2724.6,3.7399]
[1740381515900,4.59e-06,2724.8,2724.6,0.5321]
[1740381516791,4.59e-06,2724.8,2724.6,3.7399]
[1740381518197,8.47e-06,2725.2,2724.6,3.7399]
[1740381518400,8.47e-06,2725.2,2724.9,3.2078]
[1740381518693,0.5493,2725.6,2725.0,1.6659]
[1740381518895,5.6138,2725.7,2725.2,3.2078]
[1740381519297,5.61930459,2725.7,2725.2,3.2078]
[1740381519599,0.5493,2725.6,2725.2,3.2078]
[1740381521307,5.61930459,2725.7,2725.2,3.2078]
[1740381521604,5.61930459,2725.7,2725.1,3.2078]
[1740381523400,3.21330459,2725.7,2725.0,1.6659]
[1740381524008,3.74550459,2725.7,2725.0,1.6659]
[1740381524706,0.5829,2725.6,2725.0,1.6659]
[1740381524910,3.74550459,2725.7,2725.0,1.6659]
[1740381525112,0.00550459,2725.7,2725.3,3.2078]
[1740381525312,0.00550459,2725.7,2725.4,0.5323]
[1740381525602,4.59e-06,2725.7,2725.6,3.2078]
[1740381526002,4.59e-06,2725.7,2725.5,1.107]
[1740381527113,4.59e-06,2725.7,2725.6,3.2078]
[1740381536018,3.2078,2726.5,2725.6,3.2078]
[1740381536208,2.405,2726.7,2726.0,3.2078]
[1740381536512,2.9338,2726.6,2726.1,0.5308]
[1740381537115,2.93930459,2726.6,2726.1,0.53630459]
[1740381537317,0.53430459,2726.6,2726.1,0.53630459]
[1740381537616,2.93930459,2726.6,2726.1,0.53630459]
[1740381537811,0.53430459,2726.6,2726.1,0.53630459]
[1740381538016,0.00550459,2726.6,2726.1,3.74410459]
[1740381538219,0.00550459,2726.6,2726.2,0.5707]
[1740381545814,0.00550459,2726.6,2726.2,2.9757]
[1740381546015,0.00550459,2726.6,2726.1,2.94130459]
[1740381547215,0.00550459,2726.6,2726.1,6.14910459]
[1740381549722,0.00550459,2726.6,2726.1,3.74410459]
[1740381550125,0.00550459,2726.6,2726.1,0.53630459]
[1740381558732,3.2078,2726.2,2726.1,0.00550459]
[1740381559233,3.26737667,2726.2,2726.1,0.00550459]
[1740381560429,3.26737643,2726.2,2726.1,0.00550459]
[1740381560831,3.2078,2726.2,2726.1,0.00550459]
[1740381561230,3.26737462,2726.2,2726.1,0.00550459]
[1740381562036,3.26737584,2726.2,2726.1,0.00550459]
[1740381562532,0.73211646,2726.4,2726.1,0.00550459]
[1740381562533,2.405,2726.3,2726.1,0.00550459]
[1740381564029,3.13711646,2726.4,2726.1,0.00550459]
[1740381565836,3.2078,2726.2,2726.1,0.00550459]
[1740381566833,3.26738633,2726.2,2726.1,0.00550459]
[1740381567241,9.26738633,2726.2,2725.2,3.2078]
[1740381567540,3.2078,2725.9,2725.3,1.1508]
[1740381567732,2.9853,2725.8,2725.3,1.1508]
[1740381568327,2.9853,2725.8,2725.3,1.15630459]
[1740381569039,3.71772672,2725.8,2725.3,1.15630459]
[1740381571543,2.405,2725.8,2725.3,1.15630459]
[1740381571741,2.405,2725.9,2725.3,1.15630459]
[1740381572535,1.28514488,2726.1,2725.3,1.15630459]
[1740381572836,3.69014488,2726.1,2725.6,3.2078]
[1740381573042,3.13734488,2726.1,2725.7,1.1232]
[1740381573244,3.13734488,2726.1,2725.8,0.5649]
[1740381575337,0.73234488,2726.1,2725.8,0.5649]